bitfinex/quotes_SOLUSD_20250301
["timestamp","ask_amount","ask_price","bid_price","bid_amount"]
[1740853610685,0.0001,140.77,140.75,20.063]
[1740853611787,0.0001,140.77,140.76,7.1042]
[1740853621402,0.03,140.84,140.79,20.0]
[1740853621602,0.03,140.84,140.79,102.3]
[1740853624721,0.03,140.84,140.8,7.1022]
[1740853625519,0.03,140.84,140.8,10.59672353]
[1740853625722,0.03,140.84,140.83,20.0]
[1740853626395,0.0001,140.84,140.83,20.0]
[1740853626790,0.0001,140.84,140.83,45.75034886]
[1740853629021,0.0001,140.84,140.83,128.05034886]
[1740853629403,0.0001,140.84,140.83,136.17164886]
[1740853629608,0.0001,140.84,140.83,275.4619755]
[1740853629816,0.0001,140.84,140.83,273.97164886]
[1740853631529,0.03,140.89,140.87,20.0]
[1740853631820,0.03,140.89,140.87,102.3]
[1740853632921,0.03,140.91,140.9,20.0]
[1740853633118,0.03,140.91,140.9,102.3]
[1740853634222,0.03,140.91,140.9,120.94964886]
[1740853634406,0.03,140.91,140.9,102.3]
[1740853635129,0.03,140.91,140.9,109.3972]
[1740853638923,0.03,140.91,140.89,27.0975]
[1740853639122,0.03,140.91,140.86,100.048]
[1740853639936,0.03,140.91,140.87,3.64804841]
[1740853640133,0.03,140.91,140.87,10.74674841]
[1740853640438,0.03,140.91,140.86,89.3991]
[1740853640815,0.03,140.91,140.88,0.063]
[1740853643752,7.1267,140.91,140.88,0.063]
[1740853643957,0.03,140.91,140.88,0.063]
[1740853644728,0.03,140.91,140.88,20.063]
[1740853646148,0.03,140.91,140.89,7.0977]
[1740853651084,0.03,140.91,140.89,10.61078059]
[1740853651260,0.03,140.91,140.89,82.3]
[1740853652457,0.03,140.91,140.88,0.063]
[1740853652656,84.5644,140.91,140.88,0.063]
[1740853654471,7.0972,140.9,140.88,0.063]
[1740853655071,13.5372,140.9,140.88,0.063]
[1740853658674,18.64964886,140.89,140.88,0.063]
[1740853658877,28.72204886,140.89,140.88,0.063]
[1740853659666,26.72204886,140.89,140.88,0.063]
[1740853660191,28.72204886,140.89,140.88,0.063]
[1740853660411,35.81974886,140.89,140.88,0.063]
[1740853660569,33.81974886,140.89,140.88,0.063]
[1740853660770,35.81974886,140.89,140.88,0.063]
[1740853660977,33.81974886,140.89,140.88,0.063]
[1740853661595,15.1701,140.89,140.88,0.063]
[1740853663176,21.6101,140.89,140.88,0.063]
[1740853665691,15.1701,140.89,140.88,0.063]
[1740853665872,21.6101,140.89,140.88,0.063]
[1740853668415,15.0853,140.89,140.88,0.063]
[1740853668699,13.5377,140.89,140.88,0.063]
[1740853669606,13.33661,140.89,140.88,0.063]
[1740853670704,7.0972,140.9,140.88,0.063]
[1740853670909,6.44,140.89,140.88,0.063]
[1740853672903,13.5377,140.89,140.88,0.063]
[1740853673892,32.18734886,140.89,140.88,0.063]
[1740853675509,32.21734886,140.89,140.88,0.063]
[1740853682008,13.5677,140.89,140.88,0.063]
[1740853685111,32.21734886,140.89,140.88,0.063]
[1740853698626,163.89734886,140.89,140.88,0.063]
[1740853699922,163.89734886,140.89,140.88,0.0001]
[1740853700127,167.89734886,140.89,140.88,0.0001]
[1740853700306,175.65664886,140.89,140.88,0.0001]
[1740853703629,173.65664886,140.89,140.88,0.0001]
[1740853703804,175.65664886,140.89,140.88,0.0001]
[1740853707819,173.65664886,140.89,140.88,0.0001]
[1740853708131,171.65664886,140.89,140.88,0.0001]
[1740853709229,173.65664886,140.89,140.88,0.0001]
[1740853709532,175.65664886,140.89,140.88,0.0001]
[1740853711236,145.2477,140.89,140.88,0.0001]
[1740853711529,138.8077,140.89,140.88,0.0001]
[1740853711710,131.71,140.89,140.88,0.0001]
[1740853712111,138.15,140.89,140.88,0.0001]
[1740853714006,131.71,140.89,140.88,0.0001]
[1740853718112,0.03,140.89,140.88,0.0001]
[1740853724237,0.03,140.89,140.88,10.62384089]
[1740853724920,0.03,140.89,140.88,92.92384089]
[1740853728742,0.03,140.89,140.88,111.57348975]
[1740853732357,0.03,140.89,140.88,92.92384089]
[1740853733431,0.03,140.89,140.88,111.57348975]
[1740853737352,0.03,140.89,140.88,89.3983]
[1740853741741,0.03,140.89,140.88,0.0001]
[1740853742250,0.03,140.89,140.88,7.0983]
[1740853742730,0.03,140.89,140.88,20.0001]
[1740853742937,0.03,140.89,140.88,0.0001]
[1740853752548,0.03,140.89,140.88,7.0983]
[1740853765774,0.03,140.89,140.88,0.0001]
[1740853773979,6.45,140.89,140.88,0.0001]
[1740853774776,13.5477,140.89,140.88,0.0001]
[1740853787381,6.45,140.89,140.88,0.0001]
[1740853788485,13.5477,140.89,140.88,0.0001]
[1740853807919,32.19734886,140.89,140.88,0.0001]
[1740853809414,13.5477,140.89,140.88,0.0001]
[1740853812421,32.19734886,140.89,140.88,0.0001]
[1740853817702,20.0,140.85,140.77,1.6673]
[1740853817899,7.1007,140.83,140.77,8.771]
[1740853819209,7.1007,140.83,140.77,1.6673]
[1740853819806,7.1007,140.83,140.77,8.771]
[1740853822016,89.42,140.84,140.78,18.64964886]
[1740853822017,6.42,140.84,140.78,18.64964886]
[1740853822313,6.42,140.86,140.78,100.94964886]
[1740853822520,6.42,140.86,140.79,7.8281]
[1740853823318,6.42,140.86,140.82,20.0]
[1740853824117,6.42,140.86,140.83,7.1007]
[1740853824496,0.03,140.89,140.84,7.8281]
[1740853824702,0.03,140.89,140.84,90.1281]
[1740853826098,0.03,140.89,140.84,7.8281]
[1740853826295,0.03,140.89,140.84,14.928]
[1740853826500,0.03,140.89,140.84,114.9786]
[1740853828819,0.03,140.89,140.86,24.8473]
[1740853831925,0.03,140.89,140.86,107.1473]
[1740853832127,0.03,140.89,140.88,21.5723]
[1740853832429,0.03,140.89,140.88,110.267]
[1740853833230,0.03,140.89,140.88,117.3652]
[1740853834622,0.03,140.89,140.88,136.01484886]
[1740853836833,0.0001,140.89,140.88,136.01484886]
[1740853837520,0.0001,140.89,140.88,271.81484886]
[1740853838029,0.03,140.91,140.89,20.64964886]
[1740853838233,0.03,140.91,140.89,22.1393886]
[1740853838534,0.03,140.91,140.9,7.0972]
[1740853838736,0.03,140.91,140.9,247.84684886]
[1740853838737,0.0001,140.91,140.9,247.84684886]
[1740853839028,4.1686153,140.95,140.94,40.19004886]
[1740853839335,4.1686153,140.95,140.94,264.33414886]
[1740853839716,1.53e-05,140.95,140.94,266.33414886]
[1740853839916,0.03,140.99,140.98,20.0]
[1740853840127,0.03,140.99,140.98,120.94964886]
[1740853840561,0.03,140.99,140.98,131.58324886]
[1740853840833,0.03,140.99,140.98,129.58324886]
[1740853841034,0.03,140.99,140.98,110.9336]
[1740853841211,0.03,140.99,140.98,109.3932]
[1740853841835,0.03,140.99,140.98,82.3]
[1740853841836,1.5752752,140.99,140.98,82.3]
[1740853843330,1.5752752,140.99,140.94,89.8845]
[1740853843528,1.5752752,140.99,140.95,7.0942]
[1740853843912,1.5752752,140.99,140.93,7.0952]
[1740853845837,8.6679752,140.99,140.93,7.0952]
[1740853847239,1.5752752,140.99,140.93,7.0952]
[1740853847918,8.6679752,140.99,140.92,89.396]
[1740853849721,90.0933,140.98,140.91,7.0967]
[1740853850843,83.0,140.98,140.91,7.0967]
[1740853851342,83.0,140.98,140.91,24.8385]
[1740853852825,83.03,140.98,140.91,24.8385]
[1740853855649,83.03,140.98,140.91,107.1385]
[1740853857030,84.5752752,140.98,140.91,107.1385]
[1740853857449,84.5752752,140.98,140.93,24.835]
[1740853858136,84.5752752,140.98,140.95,20.0]
[1740853858439,1.5752752,140.98,140.94,18.64964886]
[1740853859526,1.5752752,140.98,140.95,24.8314]
[1740853860942,1.5752752,140.98,140.97,20.0]
[1740853862065,1.5752752,140.98,140.97,109.3937]
[1740853862944,1.5752752,140.98,140.97,128.04334886]
[1740853863144,1.5752752,140.98,140.97,109.3937]
[1740853865658,1.5752752,140.98,140.97,128.04334886]
[1740853867154,7.52e-05,140.98,140.97,128.04334886]
[1740853867661,7.52e-05,140.98,140.97,183.54334886]
[1740853868158,0.03,141.04,141.01,24.0]
[1740853868349,0.8508917,141.08,141.01,24.0]
[1740853868350,0.8508917,141.08,141.04,20.0]
[1740853868655,0.8508917,141.08,141.04,102.3]
[1740853869250,0.8508917,141.08,141.05,18.64964886]
[1740853869962,0.8508917,141.08,141.07,20.0]
[1740853870269,0.8508917,141.08,141.07,27.0886]
[1740853873371,0.8508917,141.08,141.07,20.0]
[1740853873663,0.8508917,141.08,141.04,7.0901]
[1740853873847,0.8508917,141.08,141.06,20.0]
[1740853874759,0.8508917,141.08,141.04,7.0901]
[1740853875265,0.8508917,141.08,141.04,24.8155]
[1740853876272,0.8508917,141.08,141.07,20.0]
[1740853876649,0.8508917,141.08,141.07,27.0886]
[1740853878265,0.8508917,141.08,141.05,89.3894]
[1740853878466,0.8508917,141.08,141.05,82.3]
[1740853879048,0.8508917,141.08,141.05,89.3896]
[1740853879243,7.9392917,141.08,141.03,7.0906]
[1740853880253,0.8508917,141.08,141.03,7.0906]
[1740853881249,7.9389917,141.08,141.03,7.0906]
[1740853882168,0.8508917,141.08,141.03,7.0906]
[1740853882357,0.8508917,141.08,141.03,89.3906]
[1740853884572,0.8508917,141.08,141.03,107.1173]
[1740853884974,0.8508917,141.08,141.06,20.0]
[1740853885873,0.8508917,141.08,141.06,102.3]
[1740853886052,0.8508917,141.08,141.07,7.0886]
[1740853889476,0.8508917,141.08,141.06,102.3]
[1740853889665,0.8508917,141.08,141.06,89.389]
[1740853900001,0.8508917,141.08,141.06,82.3]
[1740853900780,0.8508917,141.08,141.06,89.389]
[1740853903186,0.8508917,141.08,141.06,7.089]
[1740853904005,0.8508917,141.08,141.04,7.0901]
[1740853904187,7.9390917,141.08,141.04,7.0901]
[1740853904499,7.9390917,141.08,141.03,82.363]
[1740853904887,7.0891,141.06,141.03,0.063]
[1740853905090,8.6497,141.07,141.03,0.063]
[1740853905622,1.5609,141.07,141.03,0.063]
[1740853905789,1.5609,141.07,141.03,7.1536]
[1740853906386,8.6497,141.07,141.03,0.063]
[1740853906990,7.0896,141.05,141.03,0.063]
[1740853907485,90.0893,141.06,141.03,0.063]
[1740853913117,90.0894,141.06,141.03,0.063]
[1740853914213,83.0,141.06,141.03,0.063]
[1740853914821,90.0892,141.06,141.03,0.063]
[1740853922328,83.0,141.06,141.03,0.063]
[1740853923919,0.8508917,141.08,141.03,0.063]
[1740853924508,0.8508917,141.08,141.03,7.1536]
[1740853926132,0.03,141.06,141.03,7.1536]
[1740853927419,0.03,141.06,141.03,0.063]
[1740853928106,0.03,141.06,141.05,20.0]
[1740853928319,0.8508917,141.08,141.05,260.26918868]
[1740853928524,0.03,141.09,141.08,20.0]
[1740853928728,0.03,141.09,141.08,120.94964886]
[1740853929233,0.03,141.09,141.08,128.03774886]
[1740853931108,0.03,141.09,141.08,109.3881]
[1740853932442,0.03,141.09,141.08,113.60917022]
[1740853934311,88.93,141.17,141.08,131.32957022]
[1740853934517,82.53,141.16,141.08,131.32957022]
[1740853935249,82.53,141.16,141.08,127.1085]
[1740853938052,82.56,141.16,141.08,127.1085]
[1740853942763,82.56,141.16,141.09,3.57417769]
[1740853945252,82.56,141.16,141.1,24.805]
[1740853947057,82.56,141.16,141.1,26.363]
[1740853960366,83.0,141.18,141.17,4.39595844]
[1740853962170,83.03,141.18,141.17,4.39595844]
[1740853975085,108.76274886,141.18,141.17,4.39595844]
[1740853977465,25.76274886,141.18,141.17,4.39595844]
[1740853980176,18.67964886,141.18,141.17,4.39595844]
[1740853980378,0.03,141.18,141.17,4.39595844]
[1740853984892,0.03,141.18,141.17,25.97145844]
[1740853985070,13.15102285,141.28,141.17,139.46415844]
[1740853986115,27.04964886,141.27,141.17,139.46415844]
[1740853986274,18.14964886,141.25,141.17,139.46415844]
[1740853986674,18.14964886,141.25,141.18,4.22167443]
[1740853987396,18.14964886,141.25,141.19,7.0826]
[1740853988497,18.14964886,141.25,141.17,132.38055844]
[1740853988697,18.64964886,141.25,141.18,24.7909]
[1740853988886,6.4,141.27,141.18,24.7909]
[1740853989277,20.64964886,141.28,141.18,24.7909]
[1740853989479,83.0,141.27,141.18,107.0909]
[1740853994720,90.0786,141.27,141.18,107.0909]
[1740853995026,18.64964886,141.26,141.18,107.0909]
[1740853995196,83.0,141.25,141.18,107.0909]
[1740853995606,83.0,141.25,141.19,3.62580858]
[1740853996910,83.0,141.25,141.2,7.0821]
[1740853999217,83.0,141.25,141.18,7.0831]
[1740853999218,101.64964886,141.24,141.18,7.0831]
[1740853999424,101.64964886,141.24,141.17,13.05485844]
[1740853999425,110.04964886,141.24,141.17,13.05485844]
[1740854001419,7.0806,141.23,141.17,13.05485844]
[1740854001789,7.0806,141.23,141.17,11.55485844]
[1740854004222,83.0,141.22,141.17,11.55485844]
[1740854006426,83.0,141.22,141.17,29.26395844]
[1740854007921,83.0,141.26,141.17,111.56395844]
[1740854008103,83.0,141.26,141.17,117.96395844]
[1740854009549,90.0792,141.26,141.19,3.58519606]
[1740854009837,90.0792,141.26,141.17,117.96395844]
[1740854010533,90.1092,141.26,141.17,117.96395844]
[1740854013445,83.03,141.26,141.19,3.52097875]
[1740854013614,0.03,141.26,141.24,20.0]
[1740854013808,0.03,141.26,141.25,1.5069]
[1740854014008,0.03,141.27,141.25,7.7464]
[1740854015340,0.03,141.27,141.26,7.0791]
[1740854016744,0.03,141.27,141.22,90.2069]
[1740854016918,0.03,141.27,141.23,7.0806]
[1740854017422,0.03,141.27,141.23,107.0822]
[1740854018109,0.03,141.27,141.23,89.3806]
[1740854018721,0.03,141.27,141.23,107.0822]
[1740854029250,0.03,141.27,141.26,27.0791]
[1740854029554,0.03,141.27,141.26,109.3791]
[1740854029933,0.0001,141.27,141.26,109.3791]
[1740854030137,0.0001,141.27,141.26,135.81624886]
[1740854031026,0.0001,141.27,141.26,140.01810875]
[1740854031230,0.0001,141.27,141.26,125.00498668]
[1740854031429,0.0001,141.27,141.26,118.87568668]
[1740854032047,0.0001,141.27,141.26,114.67382679]
[1740854034067,0.0001,141.27,141.26,113.01562679]
[1740854040278,0.0001,141.27,141.26,131.66527565]
[1740854040452,0.0001,141.27,141.26,269.46527565]
[1740854040784,0.03,141.32,141.26,330.30867698]
[1740854040947,0.03,141.32,141.28,18.64964886]
[1740854041638,83.0,141.38,141.32,20.0]
[1740854041840,83.0,141.4,141.32,102.3]
[1740854042448,83.0,141.4,141.33,7.0756]
[1740854042851,90.0721,141.4,141.33,7.0756]
[1740854044379,83.0,141.4,141.33,7.0756]
[1740854045260,0.03,141.42,141.33,242.8646]
[1740854046961,0.03,141.4,141.33,242.8646]
[1740854047674,0.03,141.4,141.33,225.1756]
[1740854048979,83.0,141.39,141.3,1.5472]
[1740854049185,1.5542,141.38,141.3,1.5472]
[1740854049555,1.5542,141.38,141.3,8.6242]
[1740854049883,83.0,141.39,141.3,8.6242]
[1740854050179,0.03,141.4,141.33,20.0]
[1740854050379,0.03,141.4,141.34,7.0751]
[1740854051075,0.03,141.4,141.33,20.0]
[1740854051782,0.03,141.4,141.3,219.6472]
[1740854051981,18.67964886,141.4,141.31,7.0764]
[1740854053185,7.0726,141.39,141.31,7.0764]
[1740854053978,103.64964886,141.38,141.29,82.3]
[1740854054180,8.4542,141.37,141.29,82.3]
[1740854054376,83.0,141.36,141.27,89.3784]
[1740854054759,83.0,141.35,141.27,89.3784]
[1740854055179,90.0751,141.34,141.27,82.3]
[1740854055378,83.0,141.33,141.26,7.0789]
[1740854056959,83.0,141.32,141.24,89.3799]
[1740854057162,7.0766,141.31,141.24,89.3799]
[1740854058575,7.0766,141.31,141.27,0.063]
[1740854063185,90.0763,141.32,141.27,0.063]
[1740854065587,83.0,141.32,141.27,0.063]
[1740854067171,90.0761,141.32,141.27,0.063]
[1740854067892,83.0,141.32,141.27,0.063]
[1740854068587,6.0363,141.35,141.27,82.363]
[1740854068891,83.0,141.36,141.28,8.4949]
[1740854069078,1.5542,141.37,141.28,226.5949]
[1740854069695,1.5542,141.37,141.29,24.7717]
[1740854069874,0.03,141.32,141.29,24.7717]
[1740854070064,0.03,141.32,141.29,107.0717]
[1740854071275,0.03,141.32,141.3,3.60359902]
[1740854071696,0.03,141.32,141.3,7.0771]
[1740854073282,0.03,141.32,141.28,7.0781]
[1740854074178,0.03,141.32,141.27,82.363]
[1740854074379,84.5132,141.31,141.27,0.063]
[1740854077875,91.5898,141.31,141.27,0.063]
[1740854078801,84.5132,141.31,141.27,0.063]
[1740854086807,84.5132,141.31,141.24,24.3434]
[1740854092811,91.5898,141.31,141.24,24.3434]
[1740854097418,91.5898,141.31,141.24,6.6431]
[1740854097914,101.64964886,141.3,141.24,6.6431]
[1740854098106,101.64964886,141.3,141.23,89.3803]
[1740854098614,83.0,141.3,141.23,89.3803]
[1740854099117,90.0775,141.3,141.23,89.3803]
[1740854099618,83.0,141.3,141.23,107.0819]
[1740854099799,83.0,141.3,141.24,4.22678717]
[1740854100514,83.0,141.3,141.26,20.0]
[1740854101120,83.0,141.3,141.27,7.0786]
[1740854101317,1.5132,141.31,141.27,7.0786]
[1740854104530,1.5132,141.31,141.26,7.0789]
[1740854105020,8.5899,141.31,141.26,7.0789]
[1740854105194,83.0,141.3,141.26,7.0789]
[1740854105869,83.0,141.3,141.24,17.6992]
[1740854106023,90.0772,141.3,141.24,17.6992]
[1740854106341,90.0772,141.3,141.24,17.7622]
[1740854106628,90.0772,141.3,141.24,0.063]
[1740854106826,83.0,141.29,141.24,0.063]
[1740854107233,18.64964886,141.28,141.24,0.063]
[1740854107934,7.0786,141.27,141.24,0.063]
[1740854108139,83.0,141.27,141.24,0.063]
[1740854109222,1.6487,141.25,141.24,0.063]
[1740854110239,8.7283,141.25,141.24,0.063]
[1740854110614,27.37794886,141.25,141.24,0.063]
[1740854111020,34.17794886,141.25,141.24,0.063]
[1740854111940,18.64964886,141.24,141.22,0.063]
[1740854112240,108.73024886,141.23,141.22,0.063]
[1740854112439,101.64964886,141.23,141.22,0.063]
[1740854112617,18.64964886,141.23,141.22,0.063]
[1740854112816,18.64964886,141.22,141.17,2.89595844]
[1740854113016,83.0,141.21,141.17,2.89595844]
[1740854113214,83.0,141.21,141.17,9.97945844]
[1740854116038,83.0,141.21,141.17,27.68855844]
[1740854116546,83.0,141.24,141.17,29.28815844]
[1740854117848,83.0,141.24,141.17,26.3922]
[1740854118358,83.0,141.24,141.18,4.21001517]
[1740854118517,101.64964886,141.23,141.18,4.21001517]
[1740854119346,101.64964886,141.23,141.16,7.1469]
[1740854119647,6.86,141.22,141.16,7.1469]
[1740854120340,6.86,141.22,141.16,0.063]
[1740854122134,13.9412,141.22,141.16,0.063]
[1740854123424,31.644,141.22,141.16,0.063]
[1740854124120,18.64964886,141.21,141.16,0.063]
[1740854124330,7.0831,141.18,141.16,0.063]
[1740854124530,90.0831,141.18,141.16,0.063]
[1740854125050,6.84,141.17,141.16,0.063]
[1740854125255,25.48964886,141.17,141.16,0.063]
[1740854126540,32.57324886,141.17,141.16,0.063]
[1740854127256,34.57324886,141.17,141.16,0.063]
[1740854128742,32.57324886,141.17,141.16,0.063]
[1740854128949,13.9236,141.17,141.16,0.063]
[1740854130255,2.0,141.21,141.16,0.063]
[1740854130256,6.84,141.21,141.16,0.063]
[1740854131364,89.84,141.21,141.16,0.063]
[1740854131539,96.9219,141.21,141.16,0.063]
[1740854133452,18.64964886,141.2,141.16,0.063]
[1740854134874,90.0808,141.23,141.16,20.063]
[1740854135045,90.0808,141.23,141.16,0.063]
[1740854136336,90.0808,141.23,141.16,7.1471]
[1740854138069,83.0,141.22,141.16,7.1471]
[1740854139465,90.0813,141.22,141.16,7.1471]
[1740854143159,90.1113,141.22,141.16,7.1471]
[1740854143854,83.0,141.21,141.16,7.1471]
[1740854145057,18.64964886,141.2,141.16,0.063]
[1740854146488,7.0826,141.19,141.16,0.063]
[1740854147472,100.7041,141.21,141.16,0.063]
[1740854147682,7.0821,141.2,141.16,0.063]
[1740854149860,90.0821,141.2,141.16,0.063]
[1740854155282,107.7874,141.2,141.16,0.063]
[1740854155784,83.0,141.19,141.16,0.063]
[1740854156160,7.0831,141.18,141.16,0.063]
[1740854161573,83.0,141.17,141.16,0.063]
[1740854161777,101.64964886,141.17,141.16,0.063]
[1740854162083,98.74875613,141.17,141.16,0.063]
[1740854162889,105.83235613,141.17,141.16,0.063]
[1740854163703,107.83235613,141.17,141.16,0.063]
[1740854163994,107.83235613,141.17,141.16,0.0001]
[1740854164185,37.81384886,141.17,141.16,0.0001]
[1740854164575,22.64964886,141.13,141.12,0.063]
[1740854164772,20.0,141.11,141.1,0.063]
[1740854164985,46.46764242,141.11,141.1,0.063]
[1740854165295,50.12444242,141.11,141.1,0.063]
[1740854165479,50.12444242,141.11,141.1,0.0001]
[1740854165684,22.64964886,141.1,141.09,0.0001]
[1740854166194,22.64964886,141.09,141.08,0.0001]
[1740854167497,20.64964886,141.09,141.08,0.0001]
[1740854167684,18.64964886,141.09,141.08,0.0001]
[1740854168290,25.73724886,141.09,141.08,0.0001]
[1740854168595,5.81799356,141.11,141.08,0.0001]
[1740854168785,8.76,141.13,141.08,0.0001]
[1740854168966,18.64964886,141.12,141.08,0.0001]
[1740854169799,13.8448,141.15,141.08,0.0001]
[1740854170174,138.4642,141.16,141.08,0.0001]
[1740854170382,138.14,141.16,141.08,0.0001]
[1740854170698,6.76,141.16,141.08,82.3001]
[1740854170999,18.64964886,141.15,141.08,82.3001]
[1740854171199,20.64964886,141.15,141.08,0.0001]
[1740854171388,18.64964886,141.15,141.08,0.0001]
[1740854172392,7.0851,141.14,141.08,0.0001]
[1740854172695,18.64964886,141.12,141.08,0.0001]
[1740854172896,101.64964886,141.12,141.08,0.0001]
[1740854173885,83.0,141.12,141.08,0.0001]
[1740854174089,83.0,141.15,141.08,0.0001]
[1740854174294,83.0,141.15,141.08,82.3001]
[1740854174587,83.0,141.15,141.09,7.0876]
[1740854175201,90.0847,141.15,141.08,89.3881]
[1740854177380,18.64964886,141.14,141.08,82.3001]
[1740854177600,18.64964886,141.12,141.08,0.0001]
[1740854177882,83.0,141.11,141.08,0.0001]
[1740854178902,83.0,141.1,141.08,0.0001]
[1740854179207,101.64964886,141.09,141.08,0.0001]
[1740854179503,25.73724886,141.09,141.08,0.0001]
[1740854179875,29.73724886,141.09,141.08,0.0001]
[1740854180078,27.73724886,141.09,141.08,0.0001]
[1740854182797,7.0876,141.09,141.08,0.0001]
[1740854188810,7.0871,141.1,141.08,0.0001]
[1740854189202,7.0867,141.11,141.08,0.0001]
[1740854189399,7.0867,141.11,141.08,1.6116]
[1740854189818,131.42,141.13,141.08,1.6116]
[1740854190116,6.76,141.14,141.08,1.6116]
[1740854190499,13.8453,141.14,141.08,1.6116]
[1740854190701,13.8453,141.14,141.08,8.6996]
[1740854190901,13.8453,141.14,141.08,1.6116]
[1740854191120,13.8453,141.14,141.08,8.6997]
[1740854191310,13.8453,141.14,141.08,1.6116]
[1740854191818,31.5582,141.14,141.08,1.6116]
[1740854192805,18.64964886,141.13,141.08,1.6116]
[1740854193011,18.64964886,141.11,141.08,0.0001]
[1740854193188,83.0,141.1,141.08,0.0001]
[1740854193394,83.0,141.09,141.08,0.0001]
[1740854195016,90.0876,141.09,141.08,0.0001]
[1740854195192,83.0,141.09,141.08,0.0001]
[1740854195714,90.0876,141.09,141.08,0.0001]
[1740854196716,25.73724886,141.09,141.08,0.0001]
[1740854200425,7.0876,141.09,141.08,0.0001]
[1740854200631,19.7164,141.12,141.08,0.0001]
[1740854200798,18.64964886,141.1,141.08,0.0001]
[1740854202625,7.0876,141.09,141.08,0.0001]
[1740854203128,13.8276,141.09,141.08,0.0001]
[1740854204231,15.8276,141.09,141.08,0.0001]
[1740854204518,17.8276,141.09,141.08,0.0001]
[1740854205946,15.8276,141.09,141.08,0.0001]
[1740854206424,13.8276,141.09,141.08,0.0001]
[1740854206800,32.47724886,141.09,141.08,0.0001]
[1740854207517,34.47724886,141.09,141.08,0.0001]
[1740854207817,32.47724886,141.09,141.08,0.0001]
[1740854208325,6.74,141.11,141.08,0.0001]
[1740854208531,7.0871,141.1,141.08,0.0001]
[1740854209523,27.73674886,141.1,141.08,0.0001]
[1740854210013,20.64964886,141.09,141.08,0.0001]
[1740854210621,27.73724886,141.09,141.08,0.0001]
[1740854210828,25.73724886,141.09,141.08,0.0001]
[1740854211315,27.73724886,141.09,141.08,0.0001]
[1740854212432,29.73724886,141.09,141.08,0.0001]
[1740854213422,20.64964886,141.08,141.07,3.303e-05]
[1740854215330,27.73774886,141.08,141.07,3.303e-05]
[1740854218450,25.73774886,141.08,141.07,3.303e-05]
[1740854219126,32.45774886,141.08,141.07,3.303e-05]
[1740854221043,0.03,141.12,141.07,3.303e-05]
[1740854221342,7.0866,141.11,141.07,3.303e-05]
[1740854226017,0.03,141.12,141.07,3.303e-05]
[1740854229845,0.03,141.12,141.07,82.30003303]
[1740854230043,0.03,141.12,141.08,7.9741]
[1740854230346,89.75,141.15,141.12,6.3305]
[1740854230347,0.03,141.15,141.12,6.3305]
[1740854231947,0.03,141.15,141.13,7.0856]
[1740854232442,0.03,141.15,141.12,13.4164]
[1740854232626,0.03,141.15,141.12,6.3305]
[1740854232940,0.03,141.15,141.11,83.9436]
[1740854233249,0.03,141.15,141.11,1.6436]
[1740854233835,7.1146,141.15,141.11,1.6436]
[1740854234026,18.64964886,141.14,141.08,88.6305]
[1740854234228,18.64964886,141.14,141.08,6.3305]
[1740854234229,83.0,141.13,141.08,6.3305]
[1740854235641,7.0861,141.12,141.08,6.3305]
[1740854235846,7.0861,141.12,141.07,1.64363303]
[1740854236245,101.64964886,141.11,141.07,3.303e-05]
[1740854236620,108.34964886,141.11,141.07,3.303e-05]